[Event "Titled Tuesday Blitz May 30 Early 2023"]
[White "Schuh, Karsten"]
[Black "Paravyan, David"]
[WhiteFideId "4637950"]
[BlackFideId "4194985"]
[WhiteElo "2138"]
[BlackElo "2563"]
[Result "0-1"]
[Round "02"]
[TimeControl "180+2"]
[Date "2023.05.30"]
[WhiteClock "0:00:12"]
[BlackClock "0:01:43"]

1. Nf3 {[%clk 0:03:00]}  d5 {[%clk 0:02:59]} 2. c4 {[%clk 0:03:01]}  e6 {[%clk 0:02:59]} 3. g3 {[%clk 0:03:00]}  Nf6 {[%clk 0:03:00]} 4. Bg2 {[%clk 0:03:00]}  Be7 {[%clk 0:03:01]} 5. O-O {[%clk 0:03:00]}  O-O {[%clk 0:03:01]} 6. b3 {[%clk 0:03:01]}  c5 {[%clk 0:03:00]} 7. e3 {[%clk 0:03:00]}  Nc6 {[%clk 0:02:55]} 8. Bb2 {[%clk 0:03:00]}  d4 {[%clk 0:02:56]} 9. exd4 {[%clk 0:03:00]}  cxd4 {[%clk 0:02:57]} 10. Re1 {[%clk 0:03:01]}  Re8 {[%clk 0:02:48]} 11. a3 {[%clk 0:02:51]}  a5 {[%clk 0:02:48]} 12. d3 {[%clk 0:02:51]}  Bc5 {[%clk 0:02:46]} 13. Nbd2 {[%clk 0:02:47]}  e5 {[%clk 0:02:47]} 14. Ng5 {[%clk 0:02:45]}  Bf5 {[%clk 0:02:43]} 15. Nge4 {[%clk 0:02:44]}  Nxe4 {[%clk 0:02:43]} 16. Nxe4 {[%clk 0:02:44]}  Bf8 {[%clk 0:02:43]} 17. h3 {[%clk 0:02:24]}  Rb8 {[%clk 0:02:36]} 18. Rb1 {[%clk 0:02:22]}  Qd7 {[%clk 0:02:30]} 19. Kh2 {[%clk 0:02:19]}  b5 {[%clk 0:02:28]} 20. g4 {[%clk 0:02:09]}  Bg6 {[%clk 0:02:24]} 21. Qf3 {[%clk 0:02:05]}  bxc4 {[%clk 0:02:22]} 22. bxc4 {[%clk 0:02:06]}  Nd8 {[%clk 0:02:14]} 23. h4 {[%clk 0:01:57]}  Ne6 {[%clk 0:02:13]} 24. h5 {[%clk 0:01:29]}  Bxe4 {[%clk 0:02:13]} 25. Qxe4 {[%clk 0:01:29]}  Nc5 {[%clk 0:02:14]} 26. Qf3 {[%clk 0:01:25]}  Rb3 {[%clk 0:02:13]} 27. Ba1 {[%clk 0:00:39]}  e4 {[%clk 0:02:08]} 28. Qf5 {[%clk 0:00:26]}  Qd6+ {[%clk 0:02:01]} 29. Kg1 {[%clk 0:00:24]}  exd3 {[%clk 0:01:44]} 30. Rxe8 {[%clk 0:00:20]}  Rxb1+ {[%clk 0:01:44]} 31. Bf1 {[%clk 0:00:12]}  Rxa1 {[%clk 0:01:43]} 0-1


[Site "https://www.chess.com"]

[Event "Titled Tuesday Blitz May 30 Early 2023"]
[White "Hajiyev, Kanan"]
[Black "Terry, Renato"]
[WhiteFideId "13404148"]
[BlackFideId "3803457"]
[WhiteElo "2103"]
[BlackElo "2575"]
[Result "0-1"]
[Round "02"]
[TimeControl "180+2"]
[Date "2023.05.30"]
[WhiteClock "0:00:00"]
[BlackClock "0:00:55"]

1. c4 {[%clk 0:02:46]}  e5 {[%clk 0:02:58]} 2. h3 {[%clk 0:02:44]}  f5 {[%clk 0:02:55]} 3. g4 {[%clk 0:02:44]}  d6 {[%clk 0:02:54]} 4. e3 {[%clk 0:02:34]}  Nf6 {[%clk 0:02:55]} 5. g5 {[%clk 0:02:33]}  Ne4 {[%clk 0:02:54]} 6. h4 {[%clk 0:02:28]}  g6 {[%clk 0:02:51]} 7. Bg2 {[%clk 0:02:25]}  h6 {[%clk 0:02:48]} 8. d3 {[%clk 0:02:15]}  Nc5 {[%clk 0:02:48]} 9. e4 {[%clk 0:02:08]}  f4 {[%clk 0:02:44]} 10. Nf3 {[%clk 0:01:51]}  Bg4 {[%clk 0:02:32]} 11. Nc3 {[%clk 0:01:28]}  Nc6 {[%clk 0:02:29]} 12. Nd5 {[%clk 0:01:15]}  Bg7 {[%clk 0:02:27]} 13. b4 {[%clk 0:00:52]}  Ne6 {[%clk 0:02:23]} 14. Qa4 {[%clk 0:00:53]}  hxg5 {[%clk 0:01:57]} 15. hxg5 {[%clk 0:00:52]}  Rxh1+ {[%clk 0:01:56]} 16. Bxh1 {[%clk 0:00:53]}  Bxf3 {[%clk 0:01:51]} 17. Bxf3 {[%clk 0:00:53]}  Nxg5 {[%clk 0:01:51]} 18. Bg4 {[%clk 0:00:49]}  Kf7 {[%clk 0:01:51]} 19. Bb2 {[%clk 0:00:43]}  Ne7 {[%clk 0:01:38]} 20. O-O-O {[%clk 0:00:38]}  c6 {[%clk 0:01:27]} 21. Nc3 {[%clk 0:00:31]}  Qb6 {[%clk 0:01:23]} 22. Qb3 {[%clk 0:00:30]}  Kf8 {[%clk 0:01:20]} 23. c5 {[%clk 0:00:26]}  dxc5 {[%clk 0:01:19]} 24. bxc5 {[%clk 0:00:14]}  Qxb3 {[%clk 0:01:04]} 25. axb3 {[%clk 0:00:15]}  Ng8 {[%clk 0:01:05]} 26. Ne2 {[%clk 0:00:05]}  Nf6 {[%clk 0:01:03]} 27. f3 {[%clk 0:00:05]}  Nxg4 {[%clk 0:01:03]} 28. fxg4 {[%clk 0:00:06]}  Rd8 {[%clk 0:01:03]} 29. Ng1 {[%clk 0:00:06]}  Kf7 {[%clk 0:01:01]} 30. Kc2 {[%clk 0:00:07]}  Ke6 {[%clk 0:01:01]} 31. Rf1 {[%clk 0:00:05]}  Rh8 {[%clk 0:01:00]} 32. Rf2 {[%clk 0:00:04]}  Rh1 {[%clk 0:00:59]} 33. Ne2 {[%clk 0:00:04]}  Nh3 {[%clk 0:01:00]} 34. Rf3 {[%clk 0:00:03]}  Bf6 {[%clk 0:00:58]} 35. Nc3 {[%clk 0:00:03]}  Rh2+ {[%clk 0:00:57]} 36. Kb1 {[%clk 0:00:03]}  Ng5 {[%clk 0:00:55]} 37. Rf1 {[%clk 0:00:03]}  Rg2 {[%clk 0:00:56]} 38. d4 {[%clk 0:00:02]}  exd4 {[%clk 0:00:56]} 39. Nd1 {[%clk 0:00:03]}  Be5 {[%clk 0:00:55]} 40. Nf2 {[%clk 0:00:03]}  Nf3 {[%clk 0:00:55]} 41. Nh3 {[%clk 0:00:02]}  Nd2+ {[%clk 0:00:54]} 42. Kc1 {[%clk 0:00:01]}  Nxf1 {[%clk 0:00:55]} 43. Nxf4+ {[%clk 0:00:00]}  Bxf4+ {[%clk 0:00:55]} 0-1


[Site "https://www.chess.com"]

[Event "Titled Tuesday Blitz May 30 Early 2023"]
[White "Simonian, Hrair"]
[Black "ChawitAp"]
[WhiteFideId "13302337"]
[WhiteElo "2447"]
[BlackElo "2402"]
[Result "1-0"]
[Round "02"]
[TimeControl "180+2"]
[Date "2023.05.30"]
[WhiteClock "0:00:35"]
[BlackClock "0:00:00"]

1. e4 {[%clk 0:03:00]}  c6 {[%clk 0:02:59]} 2. d4 {[%clk 0:03:00]}  d5 {[%clk 0:02:59]} 3. Nc3 {[%clk 0:03:01]}  dxe4 {[%clk 0:02:59]} 4. Nxe4 {[%clk 0:03:02]}  Nf6 {[%clk 0:02:59]} 5. Nxf6+ {[%clk 0:03:02]}  exf6 {[%clk 0:03:00]} 6. c3 {[%clk 0:03:03]}  Bf5 {[%clk 0:03:00]} 7. Bd3 {[%clk 0:03:03]}  Bxd3 {[%clk 0:02:59]} 8. Qxd3 {[%clk 0:03:04]}  Bd6 {[%clk 0:02:59]} 9. Ne2 {[%clk 0:03:02]}  O-O {[%clk 0:03:00]} 10. O-O {[%clk 0:03:02]}  Qc7 {[%clk 0:03:00]} 11. Ng3 {[%clk 0:02:08]}  Nd7 {[%clk 0:02:57]} 12. h3 {[%clk 0:02:02]}  g6 {[%clk 0:02:48]} 13. Bh6 {[%clk 0:01:58]}  Rfe8 {[%clk 0:02:38]} 14. Rae1 {[%clk 0:01:56]}  Bxg3 {[%clk 0:02:27]} 15. Qxg3 {[%clk 0:01:53]}  Qxg3 {[%clk 0:02:27]} 16. fxg3 {[%clk 0:01:54]}  f5 {[%clk 0:02:22]} 17. Bf4 {[%clk 0:01:52]}  Nf6 {[%clk 0:02:19]} 18. Be5 {[%clk 0:01:52]}  Nd7 {[%clk 0:02:05]} 19. Bd6 {[%clk 0:01:49]}  Nb6 {[%clk 0:02:00]} 20. b3 {[%clk 0:01:41]}  Re6 {[%clk 0:01:59]} 21. Rxe6 {[%clk 0:01:37]}  fxe6 {[%clk 0:02:00]} 22. c4 {[%clk 0:01:37]}  Rd8 {[%clk 0:01:48]} 23. Bc5 {[%clk 0:01:36]}  Nc8 {[%clk 0:01:40]} 24. Rd1 {[%clk 0:01:32]}  b6 {[%clk 0:01:29]} 25. Ba3 {[%clk 0:01:32]}  c5 {[%clk 0:01:13]} 26. Bb2 {[%clk 0:01:31]}  Ne7 {[%clk 0:00:49]} 27. Kf2 {[%clk 0:01:11]}  Nc6 {[%clk 0:00:44]} 28. Re1 {[%clk 0:01:05]}  Nxd4 {[%clk 0:00:36]} 29. Bxd4 {[%clk 0:01:04]}  Rxd4 {[%clk 0:00:37]} 30. Rxe6 {[%clk 0:01:04]}  Kf7 {[%clk 0:00:27]} 31. Rc6 {[%clk 0:01:02]}  Rd2+ {[%clk 0:00:26]} 32. Kf3 {[%clk 0:01:02]}  Rxa2 {[%clk 0:00:27]} 33. Rc7+ {[%clk 0:01:02]}  Kf6 {[%clk 0:00:27]} 34. Rxh7 {[%clk 0:01:00]}  Ra3 {[%clk 0:00:28]} 35. Kf2 {[%clk 0:00:58]}  Rxb3 {[%clk 0:00:26]} 36. Rxa7 {[%clk 0:00:58]}  Rb4 {[%clk 0:00:24]} 37. Rb7 {[%clk 0:00:58]}  Rxc4 {[%clk 0:00:24]} 38. Rxb6+ {[%clk 0:00:58]}  Kg5 {[%clk 0:00:22]} 39. Kg1 {[%clk 0:00:52]}  Rc1+ {[%clk 0:00:20]} 40. Kh2 {[%clk 0:00:52]}  c4 {[%clk 0:00:20]} 41. Rc6 {[%clk 0:00:49]}  Rc2 {[%clk 0:00:19]} 42. h4+ {[%clk 0:00:49]}  Kh6 {[%clk 0:00:15]} 43. Kh3 {[%clk 0:00:47]}  Rc3 {[%clk 0:00:14]} 44. Rc7 {[%clk 0:00:45]}  Rc1 {[%clk 0:00:12]} 45. g4 {[%clk 0:00:45]}  fxg4+ {[%clk 0:00:06]} 46. Kxg4 {[%clk 0:00:46]}  c3 {[%clk 0:00:06]} 47. Rc6 {[%clk 0:00:38]}  Kh7 {[%clk 0:00:04]} 48. Kg5 {[%clk 0:00:37]}  Rg1 {[%clk 0:00:03]} 49. g4 {[%clk 0:00:37]}  Rg3 {[%clk 0:00:00]} 50. Rc7+ {[%clk 0:00:35]} 1-0


[Site "https://www.chess.com"]

[Event "Titled Tuesday Blitz May 30 Early 2023"]
[White "Sliwicki, Damian"]
[Black "Garayev, Kanan"]
[WhiteFideId "1127128"]
[BlackFideId "13406671"]
[WhiteElo "2030"]
[BlackElo "2230"]
[Result "0-1"]
[Round "02"]
[TimeControl "180+2"]
[Date "2023.05.30"]
[WhiteClock "0:00:06"]
[BlackClock "0:01:57"]

1. e4 {[%clk 0:02:47]}  e6 {[%clk 0:02:59]} 2. Qe2 {[%clk 0:02:47]}  c5 {[%clk 0:02:59]} 3. g3 {[%clk 0:02:45]}  g6 {[%clk 0:02:58]} 4. Bg2 {[%clk 0:02:44]}  Bg7 {[%clk 0:02:59]} 5. Nf3 {[%clk 0:02:36]}  Ne7 {[%clk 0:02:59]} 6. O-O {[%clk 0:02:35]}  Nbc6 {[%clk 0:02:59]} 7. e5 {[%clk 0:02:23]}  Qc7 {[%clk 0:02:57]} 8. Re1 {[%clk 0:02:23]}  h6 {[%clk 0:02:53]} 9. Nc3 {[%clk 0:02:21]}  a6 {[%clk 0:02:54]} 10. d3 {[%clk 0:02:14]}  g5 {[%clk 0:02:52]} 11. h3 {[%clk 0:01:56]}  Ng6 {[%clk 0:02:51]} 12. Be3 {[%clk 0:01:30]}  Ncxe5 {[%clk 0:02:49]} 13. Nxe5 {[%clk 0:01:21]}  Bxe5 {[%clk 0:02:46]} 14. Rad1 {[%clk 0:01:18]}  Bd4 {[%clk 0:02:32]} 15. Bxd4 {[%clk 0:01:08]}  cxd4 {[%clk 0:02:33]} 16. Nd5 {[%clk 0:01:08]}  Qd6 {[%clk 0:02:30]} 17. Qe4 {[%clk 0:01:00]}  O-O {[%clk 0:02:28]} 18. Nf6+ {[%clk 0:00:52]}  Kh8 {[%clk 0:02:24]} 19. Qg4 {[%clk 0:00:41]}  e5 {[%clk 0:02:11]} 20. Ne4 {[%clk 0:00:36]}  Qe6 {[%clk 0:02:10]} 21. Qh5 {[%clk 0:00:36]}  Kg7 {[%clk 0:02:07]} 22. f3 {[%clk 0:00:25]}  f5 {[%clk 0:02:04]} 23. Nc5 {[%clk 0:00:23]}  Qf6 {[%clk 0:01:58]} 24. g4 {[%clk 0:00:20]}  d6 {[%clk 0:01:57]} 25. gxf5 {[%clk 0:00:18]}  Nf4 {[%clk 0:01:57]} 26. Qg4 {[%clk 0:00:06]}  dxc5 {[%clk 0:01:57]} 0-1


[Site "https://www.chess.com"]

[Event "Titled Tuesday Blitz May 30 Early 2023"]
[White "Harriott, Tyrell"]
[Black "Samunenkov, Ihor"]
[WhiteFideId "2086484"]
[BlackFideId "14187086"]
[WhiteElo "2107"]
[BlackElo "2457"]
[Result "1/2-1/2"]
[Round "02"]
[TimeControl "180+2"]
[Date "2023.05.30"]
[WhiteClock "0:00:18"]
[BlackClock "0:00:03"]

1. d4 {[%clk 0:03:00]}  Nf6 {[%clk 0:02:59]} 2. e3 {[%clk 0:03:01]}  d5 {[%clk 0:02:57]} 3. Bd3 {[%clk 0:03:02]}  c5 {[%clk 0:02:57]} 4. c3 {[%clk 0:03:02]}  Nbd7 {[%clk 0:02:53]} 5. f4 {[%clk 0:03:02]}  g6 {[%clk 0:02:46]} 6. Nf3 {[%clk 0:03:01]}  Bg7 {[%clk 0:02:47]} 7. O-O {[%clk 0:03:01]}  O-O {[%clk 0:02:47]} 8. f5 {[%clk 0:03:01]}  Ne4 {[%clk 0:02:41]} 9. fxg6 {[%clk 0:03:01]}  hxg6 {[%clk 0:02:39]} 10. Bxe4 {[%clk 0:03:00]}  dxe4 {[%clk 0:02:39]} 11. Ng5 {[%clk 0:03:01]}  e5 {[%clk 0:02:26]} 12. Qg4 {[%clk 0:02:59]}  Nf6 {[%clk 0:01:16]} 13. Qh4 {[%clk 0:02:58]}  Nh5 {[%clk 0:01:16]} 14. g4 {[%clk 0:02:57]}  Bh6 {[%clk 0:01:11]} 15. gxh5 {[%clk 0:02:45]}  Bxg5 {[%clk 0:00:55]} 16. Qxe4 {[%clk 0:02:44]}  Bf5 {[%clk 0:00:39]} 17. Qxe5 {[%clk 0:02:38]}  Re8 {[%clk 0:00:34]} 18. Qg3 {[%clk 0:02:16]}  Re4 {[%clk 0:00:34]} 19. h3 {[%clk 0:01:57]}  Bh4 {[%clk 0:00:21]} 20. Qg2 {[%clk 0:01:54]}  Qd7 {[%clk 0:00:17]} 21. Rf3 {[%clk 0:01:50]}  Kh7 {[%clk 0:00:14]} 22. hxg6+ {[%clk 0:01:37]}  Bxg6 {[%clk 0:00:14]} 23. Nd2 {[%clk 0:01:34]}  Rg8 {[%clk 0:00:15]} 24. Kh1 {[%clk 0:01:13]}  Bh5 {[%clk 0:00:14]} 25. Rxf7+ {[%clk 0:01:13]}  Qxf7 {[%clk 0:00:08]} 26. Qxe4+ {[%clk 0:01:14]}  Kh8 {[%clk 0:00:02]} 27. Qxh4 {[%clk 0:00:50]}  Qg6 {[%clk 0:00:02]} 28. Qf2 {[%clk 0:00:45]}  Qe6 {[%clk 0:00:02]} 29. Kh2 {[%clk 0:00:32]}  Qd6+ {[%clk 0:00:02]} 30. Qf4 {[%clk 0:00:31]}  Qg6 {[%clk 0:00:03]} 31. Qf2 {[%clk 0:00:25]}  Qd6+ {[%clk 0:00:03]} 32. Kh1 {[%clk 0:00:23]}  Qe6 {[%clk 0:00:03]} 33. Kh2 {[%clk 0:00:18]}  Qd6+ {[%clk 0:00:03]} 1/2-1/2


[Site "https://www.chess.com"]

[Event "Titled Tuesday Blitz May 30 Early 2023"]
[White "Goltsev, Dmitry"]
[Black "Makhmudov, Shukhrat"]
[WhiteFideId "24176710"]
[BlackFideId "14200775"]
[WhiteElo "2356"]
[BlackElo "2135"]
[Result "1/2-1/2"]
[Round "02"]
[TimeControl "180+2"]
[Date "2023.05.30"]
[WhiteClock "0:01:30"]
[BlackClock "0:01:11"]

1. e4 {[%clk 0:03:00]}  e5 {[%clk 0:02:57]} 2. Nf3 {[%clk 0:03:00]}  Nc6 {[%clk 0:02:57]} 3. Bb5 {[%clk 0:03:00]}  a6 {[%clk 0:02:57]} 4. Ba4 {[%clk 0:03:00]}  Nf6 {[%clk 0:02:57]} 5. O-O {[%clk 0:03:00]}  Be7 {[%clk 0:02:58]} 6. Re1 {[%clk 0:03:00]}  b5 {[%clk 0:02:58]} 7. Bb3 {[%clk 0:03:01]}  O-O {[%clk 0:02:59]} 8. c3 {[%clk 0:03:00]}  d5 {[%clk 0:02:59]} 9. d4 {[%clk 0:03:00]}  dxe4 {[%clk 0:02:58]} 10. Nxe5 {[%clk 0:03:01]}  Nxe5 {[%clk 0:02:58]} 11. dxe5 {[%clk 0:03:01]}  Qxd1 {[%clk 0:02:58]} 12. Rxd1 {[%clk 0:03:02]}  Ng4 {[%clk 0:02:58]} 13. Bd5 {[%clk 0:03:00]}  Rb8 {[%clk 0:02:54]} 14. Bxe4 {[%clk 0:03:00]}  Bc5 {[%clk 0:02:51]} 15. Rf1 {[%clk 0:02:54]}  Nxe5 {[%clk 0:02:50]} 16. Bf4 {[%clk 0:02:54]}  Bd6 {[%clk 0:02:48]} 17. Nd2 {[%clk 0:02:53]}  Nf3+ {[%clk 0:02:45]} 18. Nxf3 {[%clk 0:02:50]}  Bxf4 {[%clk 0:02:46]} 19. Nd4 {[%clk 0:02:51]}  Re8 {[%clk 0:02:25]} 20. Rfe1 {[%clk 0:02:46]}  Bd7 {[%clk 0:02:23]} 21. Bc6 {[%clk 0:02:46]}  Bxc6 {[%clk 0:02:09]} 22. Nxc6 {[%clk 0:02:45]}  Ra8 {[%clk 0:02:08]} 23. g3 {[%clk 0:02:40]}  Bd6 {[%clk 0:02:08]} 24. Kf1 {[%clk 0:02:40]}  f5 {[%clk 0:02:03]} 25. Rxe8+ {[%clk 0:02:38]}  Rxe8 {[%clk 0:02:03]} 26. Re1 {[%clk 0:02:38]}  Rxe1+ {[%clk 0:02:02]} 27. Kxe1 {[%clk 0:02:39]}  f4 {[%clk 0:01:59]} 28. b4 {[%clk 0:02:21]}  Kf7 {[%clk 0:01:58]} 29. Ke2 {[%clk 0:02:11]}  fxg3 {[%clk 0:01:56]} 30. fxg3 {[%clk 0:02:11]}  Ke6 {[%clk 0:01:57]} 31. Kd3 {[%clk 0:02:09]}  Kd5 {[%clk 0:01:52]} 32. Nb8 {[%clk 0:02:03]}  c5 {[%clk 0:01:50]} 33. Nxa6 {[%clk 0:02:03]}  c4+ {[%clk 0:01:49]} 34. Ke3 {[%clk 0:02:03]}  g5 {[%clk 0:01:49]} 35. a3 {[%clk 0:01:57]}  h5 {[%clk 0:01:49]} 36. Nc5 {[%clk 0:01:57]}  h4 {[%clk 0:01:41]} 37. gxh4 {[%clk 0:01:54]}  gxh4 {[%clk 0:01:42]} 38. h3 {[%clk 0:01:53]}  Bxc5+ {[%clk 0:01:40]} 39. bxc5 {[%clk 0:01:54]}  Kxc5 {[%clk 0:01:40]} 40. Ke4 {[%clk 0:01:55]}  Kb6 {[%clk 0:01:40]} 41. Kd5 {[%clk 0:01:46]}  Ka5 {[%clk 0:01:41]} 42. Kc5 {[%clk 0:01:41]}  Ka4 {[%clk 0:01:41]} 43. Kb6 {[%clk 0:01:39]}  Kb3 {[%clk 0:01:41]} 44. Kxb5 {[%clk 0:01:40]}  Kxc3 {[%clk 0:01:42]} 45. a4 {[%clk 0:01:41]}  Kb3 {[%clk 0:01:31]} 46. a5 {[%clk 0:01:41]}  c3 {[%clk 0:01:31]} 47. a6 {[%clk 0:01:42]}  c2 {[%clk 0:01:32]} 48. a7 {[%clk 0:01:43]}  c1=Q {[%clk 0:01:33]} 49. a8=Q {[%clk 0:01:44]}  Qf1+ {[%clk 0:01:30]} 50. Kc5 {[%clk 0:01:41]}  Qxh3 {[%clk 0:01:26]} 51. Kd4 {[%clk 0:01:41]}  Qc3+ {[%clk 0:01:23]} 52. Ke4 {[%clk 0:01:38]}  Qg3 {[%clk 0:01:20]} 53. Qf8 {[%clk 0:01:34]}  Qe1+ {[%clk 0:01:18]} 54. Kd3 {[%clk 0:01:32]}  Qd1+ {[%clk 0:01:16]} 55. Ke3 {[%clk 0:01:31]}  Qe1+ {[%clk 0:01:17]} 56. Kd3 {[%clk 0:01:31]}  Qg3+ {[%clk 0:01:12]} 57. Ke2 {[%clk 0:01:30]}  h3 {[%clk 0:01:10]} 58. Qf3+ {[%clk 0:01:27]}  Qxf3+ {[%clk 0:01:10]} 59. Kxf3 {[%clk 0:01:28]}  h2 {[%clk 0:01:11]} 60. Kg2 {[%clk 0:01:29]}  h1=Q+ {[%clk 0:01:11]} 61. Kxh1 {[%clk 0:01:30]} 1/2-1/2


[Site "https://www.chess.com"]

[Event "Titled Tuesday Blitz May 30 Early 2023"]
[White "Domingo Nunez, Ruben"]
[Black "Urbina Perez, Juan Antonio"]
[WhiteFideId "22245570"]
[BlackFideId "2217368"]
[WhiteElo "2404"]
[BlackElo "2197"]
[Result "1-0"]
[Round "02"]
[TimeControl "180+2"]
[Date "2023.05.30"]
[WhiteClock "0:00:20"]
[BlackClock "0:00:04"]

1. c4 {[%clk 0:02:49]}  e5 {[%clk 0:02:56]} 2. g3 {[%clk 0:02:49]}  Nf6 {[%clk 0:02:55]} 3. Bg2 {[%clk 0:02:50]}  c6 {[%clk 0:02:54]} 4. d4 {[%clk 0:02:50]}  Bb4+ {[%clk 0:02:53]} 5. Bd2 {[%clk 0:02:49]}  Bxd2+ {[%clk 0:02:51]} 6. Qxd2 {[%clk 0:02:50]}  d6 {[%clk 0:02:51]} 7. Nc3 {[%clk 0:02:50]}  O-O {[%clk 0:02:49]} 8. O-O-O {[%clk 0:02:38]}  exd4 {[%clk 0:02:45]} 9. Qxd4 {[%clk 0:02:38]}  Be6 {[%clk 0:02:45]} 10. Nh3 {[%clk 0:02:34]}  Qe7 {[%clk 0:02:07]} 11. Nf4 {[%clk 0:02:34]}  Rd8 {[%clk 0:02:07]} 12. Rd3 {[%clk 0:02:34]}  Na6 {[%clk 0:02:04]} 13. Rhd1 {[%clk 0:02:34]}  d5 {[%clk 0:01:53]} 14. cxd5 {[%clk 0:02:22]}  cxd5 {[%clk 0:01:53]} 15. Re3 {[%clk 0:02:01]}  Rac8 {[%clk 0:01:47]} 16. Kb1 {[%clk 0:02:00]}  Nc5 {[%clk 0:01:38]} 17. Nfxd5 {[%clk 0:01:41]}  Nxd5 {[%clk 0:01:29]} 18. Bxd5 {[%clk 0:01:41]}  b6 {[%clk 0:01:08]} 19. Qe5 {[%clk 0:01:36]}  Nd7 {[%clk 0:00:58]} 20. Qf4 {[%clk 0:01:27]}  Nf6 {[%clk 0:00:56]} 21. Bxe6 {[%clk 0:01:24]}  Rxd1+ {[%clk 0:00:56]} 22. Nxd1 {[%clk 0:01:23]}  fxe6 {[%clk 0:00:56]} 23. Nc3 {[%clk 0:01:22]}  Qf7 {[%clk 0:00:36]} 24. Qd6 {[%clk 0:01:17]}  Nd5 {[%clk 0:00:20]} 25. Nxd5 {[%clk 0:00:55]}  Qf5+ {[%clk 0:00:17]} 26. Rd3 {[%clk 0:00:54]}  exd5 {[%clk 0:00:12]} 27. Qxd5+ {[%clk 0:00:55]}  Qxd5 {[%clk 0:00:11]} 28. Rxd5 {[%clk 0:00:56]}  Rc7 {[%clk 0:00:11]} 29. Rd3 {[%clk 0:00:55]}  Kf7 {[%clk 0:00:12]} 30. Rc3 {[%clk 0:00:55]}  Re7 {[%clk 0:00:11]} 31. e3 {[%clk 0:00:56]}  Rd7 {[%clk 0:00:11]} 32. Kc2 {[%clk 0:00:56]}  Ke6 {[%clk 0:00:12]} 33. f3 {[%clk 0:00:54]}  Ke5 {[%clk 0:00:11]} 34. Rd3 {[%clk 0:00:53]}  Rc7+ {[%clk 0:00:11]} 35. Kd2 {[%clk 0:00:54]}  h5 {[%clk 0:00:10]} 36. Rc3 {[%clk 0:00:54]}  Rd7+ {[%clk 0:00:10]} 37. Ke2 {[%clk 0:00:55]}  g5 {[%clk 0:00:10]} 38. Rb3 {[%clk 0:00:47]}  Rd5 {[%clk 0:00:09]} 39. Rb4 {[%clk 0:00:45]}  Rc5 {[%clk 0:00:08]} 40. Kd3 {[%clk 0:00:43]}  Rd5+ {[%clk 0:00:08]} 41. Kc3 {[%clk 0:00:33]}  Rc5+ {[%clk 0:00:08]} 42. Rc4 {[%clk 0:00:34]}  Ra5 {[%clk 0:00:08]} 43. h4 {[%clk 0:00:28]}  gxh4 {[%clk 0:00:08]} 44. Rxh4 {[%clk 0:00:29]}  Rxa2 {[%clk 0:00:08]} 45. Rxh5+ {[%clk 0:00:30]}  Kf6 {[%clk 0:00:08]} 46. Rb5 {[%clk 0:00:22]}  Ra1 {[%clk 0:00:08]} 47. g4 {[%clk 0:00:20]}  Rf1 {[%clk 0:00:08]} 48. g5+ {[%clk 0:00:20]}  Kg6 {[%clk 0:00:07]} 49. f4 {[%clk 0:00:21]}  Re1 {[%clk 0:00:07]} 50. Kd4 {[%clk 0:00:21]}  Rd1+ {[%clk 0:00:07]} 51. Ke4 {[%clk 0:00:22]}  Rd6 {[%clk 0:00:06]} 52. Kf3 {[%clk 0:00:22]}  Rd2 {[%clk 0:00:05]} 53. e4 {[%clk 0:00:19]}  Rd3+ {[%clk 0:00:05]} 54. Kg4 {[%clk 0:00:19]}  Rd1 {[%clk 0:00:06]} 55. f5+ {[%clk 0:00:19]}  Kg7 {[%clk 0:00:06]} 56. Kf4 {[%clk 0:00:19]}  Rf1+ {[%clk 0:00:06]} 57. Ke5 {[%clk 0:00:20]}  Rc1 {[%clk 0:00:07]} 58. Rd5 {[%clk 0:00:20]}  Rc6 {[%clk 0:00:06]} 59. Rd7+ {[%clk 0:00:20]}  Kf8 {[%clk 0:00:04]} 60. Rxa7 {[%clk 0:00:20]} 1-0


[Site "https://www.chess.com"]

[Event "Titled Tuesday Blitz May 30 Early 2023"]
[White "Harikrishnan.A.Ra"]
[Black "Topalov, Aleksandar"]
[WhiteFideId "5081483"]
[BlackFideId "925659"]
[WhiteElo "2271"]
[BlackElo "2151"]
[Result "1-0"]
[Round "02"]
[TimeControl "180+2"]
[Date "2023.05.30"]
[WhiteClock "0:00:56"]
[BlackClock "0:00:41"]

1. d4 {[%clk 0:03:00]}  Nf6 {[%clk 0:02:59]} 2. Nf3 {[%clk 0:03:00]}  g6 {[%clk 0:02:59]} 3. g3 {[%clk 0:02:58]}  Bg7 {[%clk 0:02:59]} 4. Bg2 {[%clk 0:02:59]}  O-O {[%clk 0:02:59]} 5. O-O {[%clk 0:03:00]}  d6 {[%clk 0:02:56]} 6. c4 {[%clk 0:02:44]}  Nbd7 {[%clk 0:02:50]} 7. Nc3 {[%clk 0:02:45]}  e5 {[%clk 0:02:50]} 8. e4 {[%clk 0:02:45]}  exd4 {[%clk 0:02:46]} 9. Nxd4 {[%clk 0:02:44]}  Re8 {[%clk 0:02:46]} 10. h3 {[%clk 0:02:44]}  a5 {[%clk 0:02:46]} 11. Re1 {[%clk 0:02:42]}  Nc5 {[%clk 0:02:46]} 12. b3 {[%clk 0:02:27]}  c6 {[%clk 0:02:46]} 13. Bb2 {[%clk 0:02:20]}  Qb6 {[%clk 0:02:45]} 14. a3 {[%clk 0:01:57]}  Nfd7 {[%clk 0:02:34]} 15. Rb1 {[%clk 0:01:42]}  Ne5 {[%clk 0:02:32]} 16. Bf1 {[%clk 0:01:33]}  Ncd3 {[%clk 0:02:00]} 17. Bxd3 {[%clk 0:01:29]}  Qxd4 {[%clk 0:02:00]} 18. Bf1 {[%clk 0:01:23]}  Qb6 {[%clk 0:01:47]} 19. Kg2 {[%clk 0:01:15]}  Be6 {[%clk 0:01:39]} 20. f4 {[%clk 0:01:07]}  Nd7 {[%clk 0:01:34]} 21. Na4 {[%clk 0:01:08]}  Qc7 {[%clk 0:01:30]} 22. Bxg7 {[%clk 0:01:08]}  Kxg7 {[%clk 0:01:31]} 23. Qd4+ {[%clk 0:01:09]}  Kg8 {[%clk 0:01:28]} 24. Rbd1 {[%clk 0:01:09]}  b5 {[%clk 0:00:49]} 25. Nc3 {[%clk 0:00:58]}  c5 {[%clk 0:00:41]} 26. Nxb5 {[%clk 0:00:56]} 1-0


[Site "https://www.chess.com"]